bitfinex-derivatives/quotes_SOLF0:USTF0_20240926
["timestamp","ask_amount","ask_price","bid_price","bid_amount"]
[1727351222791,11.03,153.08,153.02,11.03]
[1727351223095,11.03,153.07,152.93,1.3424]
[1727351223300,14.2966,153.07,153.0,11.03]
[1727351223795,3.2664,153.09,153.01,11.03]
[1727351223988,11.03,153.08,153.03,11.03]
[1727351224889,3.2661,153.1,153.05,3.2669]
[1727351225192,11.03,153.09,153.04,11.03]
[1727351225394,3.2661,153.1,153.06,3.2667]
[1727351227392,14.2961,153.1,153.06,3.2667]
[1727351228289,11.03,153.1,152.98,78.5]
[1727351228492,11.03,153.07,153.02,11.03]
[1727351229893,11.03,153.07,153.04,3.2671]
[1727351231298,3.2665,153.08,153.05,3.267]
[1727351234496,3.2665,153.08,152.97,81.78875457]
[1727351234695,11.03,153.04,152.99,11.03]
[1727351235702,11.03,153.04,153.02,3.2676]
[1727351235900,11.03,153.04,152.99,11.03]
[1727351236096,14.250544,153.04,152.98,11.03]
[1727351236300,14.250544,153.04,152.99,11.03]
[1727351237996,11.03,153.03,152.98,11.03]
[1727351238198,11.03,153.01,152.97,78.46]
[1727351239204,1.2946,153.02,152.99,11.03]
[1727351239405,1.2946,153.02,153.0,11.03]
[1727351239704,1.2946,153.02,152.99,11.03]
[1727351239901,1.2946,153.02,153.01,3.2679]
[1727351244407,12.3246,153.02,153.0,3.268]
[1727351245615,12.3246,153.02,152.93,89.56846658]
[1727351245616,11.03,153.01,152.93,79.8024]
[1727351245814,1.2946,153.02,152.93,78.46]
[1727351245815,11.03,152.99,152.93,78.46]
[1727351246115,14.2984,152.99,152.96,3.2688]
[1727351246510,11.03,152.99,152.94,11.03]
[1727351246713,11.03,152.99,152.97,3.2686]
[1727351247906,11.03,152.99,152.98,3.2685]
[1727351248111,11.03,152.99,152.95,11.03]
[1727351248511,11.03,152.99,152.97,3.2685]
[1727351253517,11.03,152.98,152.95,3.269]
[1727351254516,3.0,153.01,152.89,78.46]
[1727351254721,3.0,153.01,152.91,11.03]
[1727351254722,11.03,152.96,152.91,11.03]
[1727351254920,11.03,152.96,152.92,11.03]
[1727351255218,11.03,152.98,152.92,11.03]
[1727351256620,11.03,152.96,152.91,11.03]
[1727351257123,11.03,152.92,152.83,6.5431]
[1727351257320,3.30466348,152.92,152.85,11.03]
[1727351257627,11.03,152.92,152.89,3.2704]
[1727351257815,11.03,152.92,152.87,11.03]
[1727351259022,11.03,152.92,152.89,3.2703]
[1727351260626,14.2998,152.92,152.89,3.2703]
[1727351262623,4.54154552,152.94,152.87,11.03]
[1727351262927,4.54154552,152.94,152.9,3.2702]
[1727351262928,14.2996,152.93,152.9,3.2702]
[1727351269033,3.2696,152.93,152.91,3.27]
[1727351269625,3.2699,152.92,152.9,3.2702]
[1727351269829,14.2999,152.92,152.9,3.2702]
[1727351271137,14.2999,152.92,152.89,3.2703]
[1727351272940,11.03,152.91,152.84,1.2963]
[1727351273134,11.03,152.91,152.85,11.03]
[1727351273532,3.2703,152.9,152.87,3.2707]
[1727351274536,14.3005,152.89,152.86,3.271]
[1727351274931,14.3005,152.89,152.84,11.03]
[1727351275126,11.03,152.89,152.87,3.2708]
[1727351280129,11.03,152.89,152.86,3.271]
[1727351280333,11.03,152.89,152.84,11.03]
[1727351280729,3.2707,152.88,152.85,3.2711]
[1727351280942,14.3007,152.88,152.85,3.2711]
[1727351281145,11.03,152.88,152.85,3.2711]
[1727351281448,14.3007,152.88,152.85,3.2711]
[1727351281938,3.2707,152.88,152.85,3.2711]
[1727351282141,3.2707,152.88,152.86,3.271]
[1727351282533,3.2705,152.89,152.86,11.03]
[1727351283838,3.2705,152.89,152.87,3.2708]
[1727351288541,3.0,152.9,152.82,71.92855751]
[1727351288848,3.0,152.9,152.89,11.03]
[1727351289040,3.0,152.9,152.88,11.03]
[1727351289943,3.0,152.9,152.89,3.2704]
[1727351293943,3.2702,152.91,152.88,3.2706]
[1727351294243,11.03,152.9,152.85,11.03]
[1727351294436,3.2705,152.89,152.86,3.271]
[1727351294638,14.3005,152.89,152.86,3.271]
[1727351295036,11.03,152.89,152.86,3.271]
[1727351295843,14.3005,152.89,152.86,3.271]
[1727351297150,3.2707,152.88,152.86,3.271]
[1727351297551,3.2707,152.88,152.85,3.2712]
[1727351298650,14.3007,152.88,152.85,3.2712]
[1727351299749,17.3007,152.88,152.85,3.2712]
[1727351302658,3.0,152.88,152.85,11.03]
[1727351303465,3.0,152.88,152.87,3.2709]
[1727351305671,3.2705,152.89,152.87,3.2709]
[1727351311574,17.3003,152.9,152.87,3.2709]
[1727351313565,14.03,152.9,152.88,3.2705]
[1727351313772,3.0,152.9,152.88,11.03]
[1727351314376,3.0,152.9,152.89,3.2704]
[1727351315776,3.0,152.9,152.88,3.2706]
[1727351315972,6.2702,152.9,152.88,3.2706]
[1727351316674,11.03,152.89,152.82,71.92855751]
[1727351316875,11.03,152.89,152.84,11.03]
[1727351317076,14.3005,152.89,152.86,3.2709]
[1727351317279,11.03,152.87,152.82,71.92855751]
[1727351317466,11.03,152.87,152.83,11.03]
[1727351317668,11.03,152.87,152.86,3.2711]
[1727351319476,14.3006,152.89,152.86,3.2711]
[1727351324084,3.2707,152.88,152.86,3.2711]
[1727351324880,11.03,152.87,152.84,3.2715]
[1727351325487,11.03,152.85,152.83,3.2717]
[1727351326390,14.03,152.85,152.83,3.2717]
[1727351327289,3.0,152.85,152.84,3.2715]
[1727351332393,3.0,152.86,152.84,3.2715]
[1727351333486,3.0,152.86,152.85,3.2713]
[1727351335294,14.03,152.86,152.84,3.2714]
[1727351336191,17.3011,152.86,152.84,3.2714]
[1727351336386,20.50841205,152.86,152.84,3.2714]
[1727351336992,20.50841205,152.86,152.83,3.2717]
[1727351340497,17.23731205,152.86,152.83,3.2717]
[1727351341695,20.50851205,152.86,152.83,3.2717]
[1727351344299,3.2713,152.85,152.83,3.2717]
[1727351345102,17.50851205,152.86,152.83,3.2717]
[1727351346104,17.50851205,152.86,152.84,3.2715]
[1727351348798,14.3012,152.86,152.84,3.2715]
[1727351348999,19.63,153.02,152.85,11.03]
[1727351349205,19.63,153.02,152.88,11.03]
[1727351349206,13.08252902,152.92,152.88,11.03]
[1727351349706,13.08252902,152.92,152.89,3.2703]
[1727351349707,16.35252902,152.92,152.89,3.2703]
[1727351349898,16.08252902,152.92,152.89,3.2703]
[1727351350099,3.0,152.92,152.89,3.2703]
[1727351350307,16.07917986,152.92,152.89,3.2703]
[1727351350499,3.0,152.92,152.89,3.2703]
[1727351351002,3.2701,152.91,152.89,3.2703]
[1727351351503,3.0,152.92,152.88,3.2706]
[1727351351504,14.3003,152.9,152.88,3.2706]
[1727351353109,17.3003,152.9,152.88,3.2706]
[1727351353307,3.2704,152.89,152.87,3.2708]
[1727351354510,14.3004,152.89,152.87,3.2708]
[1727351354813,14.3004,152.89,152.86,3.271]
[1727351355010,3.2708,152.88,152.82,71.92855751]
[1727351355311,17.3008,152.88,152.82,82.95855751]
[1727351355609,17.3008,152.88,152.85,3.2712]
[1727351359115,3.0,152.87,152.85,3.2712]
[1727351364715,6.2709,152.87,152.85,3.2712]
[1727351364914,3.0,152.86,152.85,3.2712]
[1727351366125,17.3011,152.86,152.82,71.92855751]
[1727351366324,20.52968938,152.86,152.82,71.92855751]
[1727351366719,20.52968938,152.86,152.83,3.2716]
[1727351369931,20.52968938,152.86,152.84,3.2715]
[1727351370233,3.0,152.86,152.82,82.95855751]
[1727351370933,3.2709,152.87,152.82,82.95855751]
[1727351372034,3.2709,152.87,152.84,3.2713]
[1727351372926,3.2709,152.87,152.85,3.2713]
[1727351374531,3.2708,152.88,152.86,3.2711]
[1727351375139,14.3005,152.89,152.87,3.2708]
[1727351375340,11.03,152.89,152.84,11.03]
[1727351375535,3.2708,152.88,152.85,3.2712]
[1727351375731,11.03,152.89,152.85,3.2712]
[1727351376134,11.03,152.87,152.85,3.2712]
[1727351376330,11.03,152.86,152.85,3.2712]
[1727351379628,3.2711,152.87,152.85,3.2712]
[1727351382946,3.0,152.86,152.85,3.2712]
[1727351386241,3.0,152.86,152.8,6.5446]
[1727351386242,6.2711,152.86,152.84,3.2714]
[1727351388646,3.2711,152.86,152.84,3.2714]
[1727351392054,11.03,152.88,152.83,11.03]
[1727351392347,14.3008,152.88,152.83,11.03]
[1727351392652,3.2708,152.88,152.83,11.03]
[1727351393147,3.2708,152.88,152.86,3.2711]
[1727351393148,16.37031999,152.88,152.86,3.2711]
[1727351393348,3.2708,152.88,152.86,3.2711]
[1727351394047,16.37097303,152.88,152.86,3.2711]
[1727351394248,3.2708,152.88,152.86,3.2711]
[1727351394755,17.3008,152.88,152.86,3.2711]
[1727351397451,3.0,152.88,152.87,3.2709]
[1727351397652,3.0,152.88,152.8,6.5446]
[1727351397846,14.03,152.88,152.82,11.03]
[1727351398350,3.2709,152.87,152.85,3.2712]
[1727351398752,11.03,152.86,152.81,11.03]
[1727351398947,14.3011,152.86,152.81,11.03]
[1727351399251,14.26972244,152.86,152.79,71.95226121]
[1727351399447,3.2714,152.85,152.8,11.03]
[1727351399652,3.0,152.84,152.8,11.03]
[1727351399848,3.0,152.84,152.79,71.95226121]
[1727351400047,6.2716,152.84,152.81,3.272]
[1727351400247,6.2716,152.84,152.8,11.03]
[1727351400443,6.2716,152.84,152.79,71.95226121]
[1727351400646,3.2719,152.83,152.79,82.98226121]
[1727351400844,14.3019,152.83,152.79,82.98226121]
[1727351401151,14.3019,152.83,152.81,3.2721]
[1727351401550,11.03,152.82,152.72,7.8236]
[1727351401744,11.03,152.8,152.77,3.2728]
[1727351402150,11.03,152.8,152.75,11.03]
[1727351402458,11.03,152.81,152.76,11.03]
[1727351402661,11.03,152.81,152.73,71.97554547]
[1727351402956,11.03,152.81,152.77,11.03]
[1727351403457,3.0,152.82,152.78,11.03]
[1727351404553,3.0,152.82,152.8,3.2723]
[1727351406454,14.3018,152.83,152.8,3.2723]
[1727351407758,3.272,152.82,152.8,3.2723]
[1727351408156,11.03,152.82,152.79,3.2725]
[1727351408357,11.03,152.81,152.79,3.2725]
[1727351408558,14.3023,152.81,152.79,3.2725]
[1727351409458,3.2719,152.83,152.8,3.2722]
[1727351409654,3.2719,152.83,152.77,11.03]
[1727351409859,3.2719,152.83,152.78,11.03]
[1727351410054,14.3019,152.83,152.78,11.03]
[1727351411260,3.2716,152.84,152.78,11.03]
[1727351411461,3.2716,152.84,152.8,11.03]
[1727351412162,4.5434,152.85,152.82,11.03]
[1727351412367,6.2714,152.85,152.82,11.03]
[1727351412863,6.2714,152.85,152.83,3.2716]
[1727351413666,3.0,152.85,152.84,3.2715]
[1727351414162,3.0,152.85,152.82,11.03]
[1727351414759,6.2713,152.85,152.83,3.2716]
[1727351415362,3.0,152.84,152.83,3.2716]
[1727351416569,3.0,152.84,152.83,14.3016]
[1727351421369,3.2711,152.86,152.83,14.3016]
[1727351423977,3.2711,152.86,152.84,3.2715]
[1727351425081,17.75225621,152.87,152.85,3.2713]
[1727351425381,1.3996,152.87,152.83,11.03]
[1727351427298,3.0,152.86,152.85,3.2711]
[1727351431984,13.08936723,152.88,152.87,3.2709]
[1727351432182,73.29287121,152.93,152.87,11.03]
[1727351432383,73.29287121,152.93,152.78,1.344]
[1727351432384,3.2701,152.91,152.78,1.344]
[1727351432589,3.2701,152.91,152.89,3.2703]
[1727351433091,11.03,152.91,152.87,3.2708]
[1727351433487,11.03,152.9,152.87,3.2708]
[1727351434085,3.2705,152.89,152.87,3.2708]
[1727351435284,3.2703,152.9,152.88,3.2707]
[1727351435488,2.7261,152.93,152.88,11.03]
[1727351435689,13.7561,152.93,152.88,11.03]
[1727351436291,3.2699,152.92,152.89,3.2702]
[1727351436790,16.34979796,152.92,152.89,3.2702]
[1727351437183,3.27,152.91,152.89,3.2702]
[1727351438690,16.34969796,152.92,152.9,3.2701]
[1727351438884,13.07989796,152.92,152.9,3.2701]
[1727351439286,13.7561,152.93,152.9,3.2701]
[1727351439682,3.27,152.92,152.9,3.2701]
[1727351439881,14.3,152.92,152.9,3.2701]
[1727351443390,14.3,152.92,152.89,3.2703]
[1727351443586,11.03,152.9,152.83,4.59650735]
[1727351443786,11.03,152.9,152.84,11.03]
[1727351444593,11.03,152.9,152.88,3.2705]
[1727351449998,11.03,152.89,152.87,3.2707]
[1727351457997,3.2704,152.9,152.87,3.2707]
[1727351457998,14.3004,152.9,152.87,3.2707]
[1727351461803,14.3004,152.9,152.88,3.2706]
[1727351463601,3.2701,152.91,152.89,3.2704]
[1727351463905,11.03,152.91,152.89,3.2704]
[1727351464303,3.2702,152.9,152.88,3.2706]
[1727351465200,11.03,152.89,152.87,3.2707]
[1727351465401,3.9993,152.93,152.85,11.03]
[1727351465601,11.03,152.89,152.85,11.03]
[1727351465899,11.03,152.89,152.88,3.2707]
[1727351466503,14.3004,152.89,152.88,3.2707]
[1727351467110,14.3004,152.89,152.78,6.5453]
[1727351467111,11.03,152.89,152.78,6.5453]
[1727351467311,3.9993,152.93,152.78,6.5453]
[1727351467312,11.03,152.84,152.79,11.03]
[1727351467513,11.03,152.84,152.82,3.2718]
[1727351467810,11.03,152.83,152.82,3.2718]
[1727351468505,3.24932905,152.86,152.83,3.2717]
[1727351468711,11.03,152.84,152.83,3.2717]
[1727351474017,11.03,152.84,152.82,3.2718]
[1727351477319,11.03,152.84,152.83,3.2717]
[1727351477625,2.6662,152.88,152.83,11.03]
[1727351477918,1.335,152.92,152.86,11.03]
[1727351478120,1.335,152.92,152.87,11.03]
[1727351478329,1.335,152.92,152.9,3.2701]
[1727351479419,63.58749153,152.93,152.91,3.27]
[1727351479625,1.3675,152.93,152.9,11.03]
[1727351480219,1.3675,152.93,152.91,3.27]
[1727351480419,11.03,152.92,152.91,3.27]
[1727351480625,11.03,152.92,152.87,11.03]
[1727351481014,11.03,152.9,152.83,4.66289621]
[1727351481221,11.03,152.88,152.77,12.91110737]
[1727351481527,14.3008,152.88,152.85,3.2711]
[1727351482727,11.03,152.86,152.84,3.2714]
[1727351483121,11.03,152.86,152.8,11.03]
[1727351483924,11.03,152.86,152.82,11.03]
[1727351484127,11.03,152.88,152.82,11.03]
[1727351484822,11.03,152.88,152.83,11.03]
[1727351485529,11.03,152.88,152.86,3.2711]
[1727351485823,3.2706,152.89,152.86,3.2711]
[1727351486027,11.03,152.88,152.86,3.2711]
[1727351487526,11.03,152.87,152.85,3.2712]
[1727351488426,11.03,152.87,152.82,11.03]
[1727351488632,11.03,152.87,152.86,3.2711]
[1727351490131,1.3675,152.93,152.83,11.03]
[1727351490332,11.03,152.91,152.85,11.03]
[1727351490929,14.3001,152.91,152.85,11.03]
[1727351491227,14.3001,152.91,152.88,3.2705]
[1727351492330,11.03,152.91,152.89,3.2704]
[1727351494135,11.03,152.9,152.81,6.5443]
[1727351494331,11.03,152.88,152.83,11.03]
[1727351494836,11.03,152.88,152.86,3.271]
[1727351497734,11.03,152.88,152.81,11.03]
[1727351497929,11.03,152.86,152.81,11.03]
[1727351498132,11.03,152.86,152.84,3.2713]
[1727351498328,11.03,152.86,152.81,11.03]
[1727351499836,11.03,152.86,152.85,3.2713]
[1727351501037,11.03,152.87,152.86,3.2711]
[1727351511339,14.3007,152.88,152.86,3.2711]
[1727351511539,1.3675,152.93,152.84,11.03]
[1727351511743,11.03,152.89,152.84,11.03]
[1727351512442,14.45279937,152.93,152.85,11.03]
[1727351512741,11.03,152.91,152.85,11.03]
[1727351512949,27.38539937,152.91,152.85,11.03]
[1727351513141,13.08529937,152.9,152.85,11.03]
[1727351514344,13.08529937,152.9,152.88,3.2705]
[1727351514942,13.08529937,152.9,152.89,3.2704]
[1727351515245,1.3675,152.93,152.89,11.03]
[1727351515449,1.3675,152.93,152.91,3.2699]
[1727351515648,12.3975,152.93,152.91,3.2699]
[1727351515949,15.6672,152.93,152.9,3.2701]
[1727351516143,12.3975,152.93,152.9,3.2701]
[1727351516747,11.03,152.91,152.9,3.2701]
[1727351516941,11.03,152.91,152.89,3.2703]
[1727351517153,11.03,152.9,152.89,3.2703]
[1727351520655,3.27,152.91,152.89,3.2703]
[1727351520849,11.03,152.91,152.89,3.2703]
[1727351522152,11.03,152.91,152.85,11.03]
[1727351522349,11.03,152.88,152.82,1.3964]
[1727351522548,11.03,152.88,152.83,11.03]
[1727351522953,11.03,152.88,152.86,3.271]
[1727351523354,11.03,152.88,152.87,3.2709]
[1727351523757,11.03,152.88,152.83,11.03]
[1727351524254,11.03,152.88,152.86,3.271]
[1727351524447,14.2917801,152.87,152.8,150.46294362]
[1727351524759,11.03,152.84,152.83,3.2717]
[1727351525146,11.03,152.86,152.84,3.2715]
[1727351526752,14.3011,152.86,152.84,3.2715]
[1727351527558,11.03,152.86,152.84,3.2715]
[1727351528553,11.03,152.86,152.85,3.2713]
[1727351529653,6.5326801,152.87,152.85,3.2713]
[1727351529859,14.2917801,152.87,152.85,3.2713]
[1727351530050,11.03,152.87,152.86,3.2711]
[1727351530962,7.3816,152.88,152.86,3.2711]
[1727351531160,13.08225098,152.93,152.85,11.03]
[1727351531463,11.03,152.9,152.84,11.03]
[1727351531962,3.2706,152.89,152.87,3.2708]
[1727351533258,11.03,152.9,152.85,11.03]
[1727351533457,11.03,152.91,152.85,11.03]
[1727351533860,11.03,152.91,152.89,3.2703]
[1727351534357,13.08039302,152.92,152.88,11.03]
[1727351534562,1.2987,152.93,152.89,11.03]
[1727351534950,1.2987,152.93,152.91,3.2699]
[1727351535859,11.03,152.92,152.86,11.03]
[1727351536359,11.03,152.9,152.86,11.03]
[1727351536565,11.03,152.9,152.88,3.2706]
[1727351537664,11.03,152.92,152.86,11.03]
[1727351538566,14.2998,152.92,152.86,11.03]
[1727351539569,14.2998,152.92,152.89,3.2703]
[1727351540265,3.27,152.91,152.89,3.2703]
[1727351540465,11.03,152.92,152.89,3.2703]
[1727351541068,14.2999,152.92,152.89,3.2703]
[1727351541663,11.03,152.92,152.9,3.2701]
[1727351542164,14.2998,152.92,152.9,3.2701]
[1727351544168,11.03,152.91,152.81,1.3075]
[1727351544365,11.03,152.86,152.8,150.48294362]
[1727351544561,11.03,152.85,152.8,150.48294362]
[1727351544763,11.03,152.85,152.83,3.2716]
[1727351545161,3.2718,152.83,152.8,81.8122]
[1727351545364,11.03,152.82,152.8,81.8122]
[1727351545565,11.03,152.82,152.71,78.52]
[1727351545869,11.03,152.82,152.72,6.38979503]
[1727351546061,11.03,152.81,152.73,6.38979503]
[1727351546267,11.03,152.81,152.75,11.03]
[1727351547060,3.9826,152.84,152.77,11.03]
[1727351547265,3.9826,152.84,152.72,71.97652933]
[1727351547266,11.03,152.83,152.78,11.03]
[1727351547663,11.03,152.83,152.81,3.2721]
[1727351550771,11.03,152.83,152.8,3.2723]
[1727351551974,11.03,152.82,152.8,3.2723]
[1727351552773,11.03,152.82,152.81,3.2722]
[1727351553272,11.03,152.83,152.78,11.03]
[1727351554970,3.9826,152.84,152.78,11.03]
[1727351555181,3.9826,152.84,152.8,11.03]
[1727351555476,2.6965,152.84,152.8,11.03]
[1727351556071,2.6965,152.84,152.75,3.26795887]
[1727351556072,13.7265,152.84,152.79,11.03]
[1727351556773,13.7265,152.84,152.82,3.2718]
[1727351558573,1.395,152.84,152.83,3.2717]
[1727351559275,11.03,152.87,152.81,11.03]
[1727351559474,13.7481,152.88,152.83,11.03]
[1727351559873,13.7481,152.88,152.87,3.2709]
[1727351560666,1.3614,152.94,152.85,11.03]
[1727351560874,11.03,152.91,152.85,11.03]
[1727351561068,11.03,152.91,152.76,1.3581]
[1727351561069,11.03,152.91,152.87,11.03]
[1727351561376,11.03,152.91,152.89,3.2703]
[1727351561576,11.03,152.91,152.87,11.03]
[1727351561778,11.03,152.91,152.89,3.2703]
[1727351562679,2.6226,152.93,152.9,3.2702]
[1727351562875,13.6526,152.93,152.9,3.2702]
[1727351564178,16.9223,152.93,152.9,3.2702]
[1727351565081,1.3614,152.94,152.83,3.25206178]
[1727351565082,1.3614,152.94,152.89,11.03]
[1727351565275,1.3614,152.94,152.83,3.25206178]
[1727351565276,11.03,152.93,152.88,11.03]
[1727351565775,11.03,152.93,152.91,3.2698]
[1727351565974,1.3987,152.99,152.88,11.03]
[1727351566279,11.03,152.95,152.89,11.03]
[1727351566479,11.03,152.95,152.93,3.2694]
[1727351566880,11.03,152.96,152.91,11.03]
[1727351567077,14.23373679,152.96,152.91,11.03]
[1727351567277,11.03,152.96,152.91,11.03]
[1727351567877,13.05630686,152.97,152.94,11.03]
[1727351568084,1.2667,152.98,152.94,11.03]
[1727351568572,1.2667,152.98,152.96,3.2688]
[1727351568771,12.2967,152.98,152.96,3.2688]
[1727351569778,3.28438746,153.08,152.88,71.90327732]
[1727351569779,26.1796,153.16,152.97,11.03]
[1727351569978,26.1796,153.16,152.92,78.52]
[1727351569979,11.03,153.0,152.95,11.03]
[1727351571179,11.03,153.0,152.97,3.2686]
[1727351572083,11.03,152.99,152.97,3.2686]
[1727351572786,11.03,153.0,152.97,3.2686]
[1727351573383,11.03,153.0,152.98,3.2685]
[1727351574384,15.70071551,153.01,152.98,3.2685]
[1727351574582,12.3555,153.01,152.98,3.2685]
[1727351574778,12.3555,153.01,152.96,11.03]
[1727351575185,12.3555,153.01,152.99,3.2683]
[1727351581488,15.6234,153.01,152.99,3.2683]
[1727351581690,11.03,153.0,152.95,11.03]
[1727351581894,11.03,153.0,152.94,11.03]
[1727351582094,1.3255,153.01,152.95,11.03]
[1727351582294,1.3255,153.01,153.0,3.2681]
[1727351583189,14.24178625,153.02,153.0,3.2681]
[1727351583896,11.03,153.03,153.01,3.2678]
[1727351584091,3.26378373,153.04,152.99,11.03]
[1727351584488,3.26378373,153.04,153.03,3.2674]
[1727351584692,12.3007,153.05,153.01,11.03]
[1727351584892,13.7833,153.06,153.01,11.03]
[1727351585094,13.7833,153.06,153.04,3.2671]
[1727351585286,2.7533,153.06,153.01,11.03]
[1727351585593,13.7833,153.06,153.01,11.03]
[1727351585788,20.24258351,153.06,153.04,3.2671]
[1727351587194,4.56688351,153.06,153.04,3.2671]
[1727351588903,7.83368351,153.06,153.04,3.2671]
[1727351589600,18.86368351,153.06,153.04,3.2671]
[1727351589800,15.6712,153.06,153.04,3.2671]
[1727351590296,19.02154153,153.06,153.04,3.2671]
[1727351590892,1.3531,153.12,153.04,11.03]
[1727351591093,11.03,153.09,153.02,11.03]
[1727351591293,11.03,153.07,153.01,11.03]
[1727351591594,6.58291091,153.06,153.03,3.2672]
[1727351591796,14.34601091,153.06,153.01,11.03]
[1727351591990,11.03,153.04,153.02,3.2675]
[1727351592200,11.03,153.04,152.99,11.03]
[1727351592602,11.03,153.04,152.96,1.3581]
[1727351592603,14.2972,153.04,152.96,1.3581]
[1727351592795,14.2972,153.04,152.99,11.03]
[1727351593693,11.03,153.04,152.99,11.03]
[1727351594403,14.2973,153.04,152.99,11.03]
[1727351595099,14.2973,153.04,153.01,3.2677]
[1727351595697,14.2973,153.04,152.94,84.9987]
[1727351595698,14.2975,153.03,152.98,11.03]
[1727351596409,14.2975,153.03,153.01,3.2678]
[1727351596697,14.2975,153.03,152.98,11.03]
[1727351597301,14.2977,153.02,152.98,11.03]
[1727351597700,14.2977,153.02,152.99,3.2682]
[1727351597992,14.2977,153.02,152.97,11.03]
[1727351599708,14.2977,153.02,152.99,3.2681]
[1727351604816,11.03,153.02,152.98,3.2685]
[1727351605114,11.03,152.99,152.94,11.03]
[1727351605816,11.03,152.99,152.97,3.2686]
[1727351606417,14.2984,152.99,152.97,3.2686]
[1727351607712,11.03,152.99,152.97,3.2686]
[1727351607914,11.03,152.99,152.98,3.2685]
[1727351609212,3.9185,153.05,152.99,3.2683]
[1727351609213,3.268,153.01,152.99,3.2683]
[1727351609512,3.9185,153.05,153.0,11.03]
[1727351609717,14.9485,153.05,153.0,11.03]
[1727351610513,13.6805,153.05,153.0,11.03]
[1727351610820,13.6805,153.05,153.03,3.2674]
[1727351611609,1.2769,153.1,153.01,11.03]
[1727351611810,12.2965,153.09,153.03,11.03]
[1727351612022,14.35624762,153.08,153.03,11.03]
[1727351612220,14.35624762,153.08,153.05,3.2668]
[1727351612825,17.62264762,153.08,153.05,3.2668]
[1727351613117,17.62264762,153.08,153.06,3.2668]
[1727351614724,17.62264762,153.08,153.05,3.2669]
[1727351615825,11.03,153.07,153.05,3.2669]
[1727351616426,6.59264762,153.08,152.98,1.3388]
[1727351616427,11.03,153.06,152.98,1.3388]
[1727351616623,11.03,153.06,153.0,11.03]
[1727351616819,11.03,153.04,153.0,11.03]
[1727351617020,11.03,153.04,153.02,3.2675]
[1727351623025,11.03,153.03,152.93,6.5392]
[1727351623228,11.03,153.01,152.96,11.03]
[1727351625025,4.6107,153.03,153.0,3.2681]
[1727351625226,11.03,153.01,152.92,78.46]
[1727351625428,11.03,153.0,152.95,11.03]
[1727351625632,14.29804865,153.0,152.98,3.2684]
[1727351626233,14.29804865,153.0,152.99,3.2683]
[1727351626734,3.26804865,153.0,152.99,3.2683]
[1727351626933,11.03,153.02,152.99,3.2683]
[1727351627126,11.03,153.02,152.96,11.03]
[1727351627333,2.6255,153.03,153.0,11.03]
[1727351627533,1.3432,153.03,153.0,11.03]
[1727351627733,12.3732,153.03,152.98,11.03]